bitfinex/quotes_BTCUSD_20250619
["timestamp","ask_amount","ask_price","bid_price","bid_amount"]
[1750339505223,0.91372238,104810.0,104800.0,0.41674454]
[1750339505483,0.87132238,104810.0,104800.0,0.41674454]
[1750339506692,0.87132229,104810.0,104800.0,0.41674454]
[1750339507973,0.86178158,104810.0,104800.0,0.41674454]
[1750339509780,0.86178149,104810.0,104800.0,0.41674454]
[1750339510705,0.8713222,104810.0,104800.0,0.41674454]
[1750339511440,0.8713222,104810.0,104800.0,0.41670454]
[1750339511920,0.36962129,104810.0,104800.0,0.41670454]
[1750339512155,0.8713222,104810.0,104800.0,0.41670454]
[1750339513257,0.880863,104810.0,104800.0,0.41670454]
[1750339513402,0.8713222,104810.0,104800.0,0.41670454]
[1750339513835,0.8713222,104810.0,104800.0,0.41670454]
[1750339515309,0.88086309,104810.0,104800.0,0.41670454]
[1750339515908,0.8713222,104810.0,104800.0,0.41670454]
[1750339516768,0.88086309,104810.0,104800.0,0.41670454]
[1750339521005,1.57530498,104810.0,104800.0,0.41662472]
[1750339521428,1.58484605,104810.0,104800.0,0.42616615]
[1750339521878,1.56384605,104810.0,104800.0,0.42616615]
[1750339523221,1.55430553,104810.0,104800.0,0.42616615]
[1750339525652,1.55430553,104810.0,104800.0,0.43570749]
[1750339526082,1.35394298,104810.0,104800.0,0.43570749]
[1750339526531,1.344402,104810.0,104800.0,0.43570749]
[1750339527164,0.8522418,104810.0,104800.0,0.43570749]
[1750339527807,0.86178278,104810.0,104800.0,0.43570749]
[1750339528009,1.35394298,104810.0,104800.0,0.43570749]
[1750339528212,1.54476446,104810.0,104800.0,0.43570749]
[1750339528417,1.35394298,104810.0,104800.0,0.43570749]
[1750339528669,0.86178278,104810.0,104800.0,0.43570749]
[1750339529122,0.8522418,104810.0,104800.0,0.43570749]
[1750339530723,0.86178278,104810.0,104800.0,0.43570749]
[1750339531318,1.35394298,104810.0,104800.0,0.43570749]
[1750339532389,1.54476446,104810.0,104800.0,0.43570749]
[1750339533264,1.35394298,104810.0,104800.0,0.43570749]
[1750339533858,0.36962258,104810.0,104800.0,0.43570749]
[1750339534059,1.35394298,104810.0,104800.0,0.43570749]
[1750339535753,1.54476446,104810.0,104800.0,0.27926749]
[1750339535956,1.54476446,104810.0,104800.0,0.43566749]
[1750339538526,1.35394298,104810.0,104800.0,0.43566749]
[1750339539882,1.344402,104810.0,104800.0,0.43566749]
[1750339543093,1.34440154,104810.0,104800.0,0.43566749]
[1750339543539,1.34440154,104810.0,104800.0,0.45496749]
[1750339543744,1.35394234,104810.0,104800.0,0.45496749]
[1750339544169,0.86178214,104810.0,104800.0,0.45496749]
[1750339544391,0.86178214,104810.0,104800.0,0.47476749]
[1750339547226,0.87132303,104810.0,104800.0,0.47476749]
[1750339548587,1.36348323,104810.0,104800.0,0.45496749]
[1750339548824,1.56384578,104810.0,104800.0,0.43562749]
[1750339549974,1.3730243,104810.0,104800.0,0.43562749]
[1750339550203,0.37916283,104810.0,104800.0,0.43562749]
[1750339550423,1.55430471,104810.0,104800.0,0.43562749]
[1750339550638,1.56384569,104810.0,104800.0,0.43562749]
[1750339550877,1.55430526,104810.0,104800.0,0.42608615]
[1750339551719,1.55430526,104810.0,104800.0,0.43562749]
[1750339552394,1.36348378,104810.0,104800.0,0.43562749]
[1750339556827,1.55430526,104810.0,104800.0,0.43562749]
[1750339557391,1.36348378,104810.0,104800.0,0.43562749]
[1750339558391,1.55430526,104810.0,104800.0,0.43562749]
[1750339560403,1.36348378,104810.0,104800.0,0.43562749]
[1750339563027,1.55430526,104810.0,104800.0,0.43562749]
[1750339564471,1.36348378,104810.0,104800.0,0.43562749]
[1750339565526,1.55430526,104810.0,104800.0,0.43562749]
[1750339565721,1.36348378,104810.0,104800.0,0.43562749]
[1750339566459,0.35054043,104810.0,104800.0,0.45652749]
[1750339566664,0.35054034,104810.0,104800.0,0.47732749]
[1750339566874,0.85224115,104810.0,104800.0,0.47732749]
[1750339567084,0.8331602,104810.0,104800.0,0.57260642]
[1750339567298,0.4931602,104810.0,104800.0,0.57260642]
[1750339571593,0.001,104810.0,104800.0,0.57260642]
[1750339572023,0.4931602,104810.0,104800.0,0.57260642]
[1750339575840,0.87318264,104820.0,104810.0,0.2600436]
[1750339576050,1.36534284,104820.0,104810.0,0.2600436]
[1750339576900,1.35580341,104820.0,104810.0,0.2600436]
[1750339577528,1.36534284,104820.0,104810.0,0.2600436]
[1750339578382,1.35580341,104820.0,104810.0,0.2600436]
[1750339578631,1.36534284,104820.0,104810.0,0.2600436]
[1750339579574,1.37488254,104820.0,104810.0,0.2600436]
[1750339580986,1.38442234,104820.0,104810.0,0.2600436]
[1750339582782,0.40010194,104820.0,104810.0,0.2600436]
[1750339582986,1.38442234,104820.0,104810.0,0.2600436]
[1750339583187,1.37488254,104820.0,104810.0,0.2395436]
[1750339583603,1.37488245,104820.0,104810.0,0.2589436]
[1750339583813,1.36534284,104820.0,104810.0,0.2589436]
[1750339584058,1.37488245,104820.0,104810.0,0.2589436]
[1750339584232,1.36534284,104820.0,104810.0,0.2589436]
[1750339584634,1.37488245,104820.0,104810.0,0.2589436]
[1750339584837,1.36534284,104820.0,104810.0,0.2589436]
[1750339585727,1.37488236,104820.0,104810.0,0.2589436]
[1750339585953,1.38442197,104820.0,104810.0,0.2589436]
[1750339587546,0.86364321,104820.0,104810.0,0.2589436]
[1750339587874,0.37148301,104820.0,104810.0,0.35422253]
[1750339588023,0.86364321,104820.0,104810.0,0.35422253]
[1750339588221,0.37148301,104820.0,104810.0,0.35422253]
[1750339588426,0.86364321,104820.0,104810.0,0.35422253]
[1750339588830,0.37148301,104820.0,104810.0,0.35422253]
[1750339589039,0.86364321,104820.0,104810.0,0.35422253]
[1750339589573,0.37148301,104820.0,104810.0,0.35422253]
[1750339589773,0.86364321,104820.0,104810.0,0.35422253]
[1750339592985,1.35580341,104820.0,104810.0,0.35422253]
[1750339593434,1.36534293,104820.0,104810.0,0.55098253]
[1750339593858,1.35580341,104820.0,104810.0,0.55098253]
[1750339594542,1.36534284,104820.0,104810.0,0.55098253]
[1750339595200,1.35580341,104820.0,104810.0,0.55098253]
[1750339595888,1.36534284,104820.0,104810.0,0.55098253]
[1750339596515,1.37488236,104820.0,104810.0,0.55098253]
[1750339597192,1.36534284,104820.0,104810.0,0.55098253]
[1750339597448,1.35580341,104820.0,104810.0,0.55098253]
[1750339597911,1.36534284,104820.0,104810.0,0.55098253]
[1750339598815,1.35580341,104820.0,104810.0,0.55098253]
[1750339601761,1.35543363,104820.0,104810.0,0.55098253]
[1750339602199,0.37111323,104820.0,104810.0,0.55098253]
[1750339602676,1.35543363,104820.0,104810.0,0.55098253]
[1750339602922,1.36497306,104820.0,104810.0,0.2194436]
[1750339603203,1.37451258,104820.0,104810.0,0.2194436]
[1750339603431,1.37451258,104820.0,104810.0,0.4162036]
[1750339604961,1.38405228,104820.0,104810.0,0.4162036]
[1750339605186,1.37451258,104820.0,104810.0,0.4162036]
[1750339606268,1.37451258,104820.0,104810.0,0.4161636]
[1750339607375,1.37295258,104820.0,104810.0,0.4161636]
[1750339609288,1.38249228,104820.0,104810.0,0.4161636]
[1750339610155,1.39203217,104820.0,104810.0,0.4161636]
[1750339610688,2.14849097,104820.0,104810.0,0.36602335]
[1750339610951,2.14849097,104820.0,104810.0,0.36602344]
[1750339610952,1.64679125,104820.0,104810.0,0.36602344]
[1750339611191,1.64679125,104820.0,104790.0,0.4601179]
[1750339611192,0.00954116,104800.0,104790.0,0.47920259]
[1750339611407,1.0034029,104800.0,104790.0,0.78074423]
[1750339611624,1.0034029,104800.0,104790.0,0.76014423]
[1750339611837,0.99386156,104800.0,104790.0,0.74064423]
[1750339612059,1.0034029,104800.0,104790.0,0.74064423]
[1750339612276,0.99386156,104800.0,104790.0,0.74064423]
[1750339612715,0.9843204,104800.0,104790.0,0.76654423]
[1750339612924,0.8321602,104800.0,104790.0,0.78634423]
[1750339613378,0.34,104800.0,104790.0,0.78634423]
[1750339613566,0.8321602,104800.0,104790.0,0.78634423]
[1750339615923,0.8321602,104800.0,104790.0,0.78622423]
[1750339616328,0.34,104800.0,104790.0,0.78622423]
[1750339616536,0.8321602,104800.0,104790.0,0.78622423]
[1750339617976,0.8321602,104800.0,104790.0,0.78701523]
[1750339618413,0.34,104800.0,104790.0,0.78701523]
[1750339618638,0.8321602,104800.0,104790.0,0.78701523]
[1750339619667,0.8321602,104800.0,104790.0,0.78622423]
[1750339620620,0.34,104800.0,104790.0,0.78622423]
[1750339620821,0.8321602,104800.0,104790.0,0.78622423]
[1750339622314,0.8313692,104800.0,104790.0,0.78622423]
[1750339625494,0.339209,104800.0,104790.0,0.78622423]
[1750339625746,0.8313692,104800.0,104790.0,0.78622423]
[1750339627519,0.8313692,104800.0,104790.0,0.55706423]
[1750339630531,0.339209,104800.0,104790.0,0.55706423]
[1750339630740,0.8313692,104800.0,104790.0,0.55706423]
[1750339633897,0.8313692,104800.0,104790.0,0.40098423]
[1750339634105,0.8313692,104800.0,104790.0,0.55702423]
[1750339635228,1.3235294,104800.0,104790.0,0.51632423]
[1750339635446,0.8313692,104800.0,104790.0,0.51632423]
[1750339635656,0.8313692,104800.0,104790.0,0.55532423]
[1750339636304,0.339209,104800.0,104790.0,0.55532423]
[1750339636518,0.8313692,104800.0,104790.0,0.55532423]
[1750339637154,0.8313692,104800.0,104790.0,0.35876423]
[1750339637394,0.8313692,104800.0,104790.0,0.55532423]
[1750339638510,0.8313692,104800.0,104790.0,0.53612423]
[1750339638725,1.3235294,104800.0,104790.0,0.53612423]
[1750339639612,1.33307056,104800.0,104790.0,0.53612423]
[1750339640295,1.33307056,104800.0,104790.0,0.53608423]
[1750339640503,1.33307056,104800.0,104790.0,0.51628423]
[1750339642953,1.3426119,104800.0,104790.0,0.36028423]
[1750339643191,1.35215342,104800.0,104790.0,0.4210053]
[1750339643409,1.3426119,104800.0,104790.0,0.4210053]
[1750339643621,1.35215342,104800.0,104790.0,0.4210053]
[1750339643832,1.3426119,104800.0,104790.0,0.4210053]
[1750339647497,1.35215333,104800.0,104790.0,0.4210053]
[1750339649122,1.3426119,104800.0,104790.0,0.4210053]
[1750339649578,1.33307056,104800.0,104790.0,0.4210053]
[1750339650040,1.34261181,104800.0,104790.0,0.4210053]
[1750339650503,0.339209,104800.0,104790.0,0.4596053]
[1750339650740,0.8313692,104800.0,104790.0,0.55488423]
[1750339654274,0.339209,104800.0,104790.0,0.55488423]
[1750339654473,0.8313692,104800.0,104790.0,0.55488423]
[1750339659870,1.3235294,104800.0,104790.0,0.55488423]
[1750339661048,0.8313692,104800.0,104790.0,0.55488423]
[1750339661260,1.3235294,104800.0,104790.0,0.55488423]
[1750339661682,0.8313692,104800.0,104790.0,0.55488423]
[1750339669141,0.4921602,104800.0,104790.0,0.55488423]
[1750339672988,0.92109275,104820.0,104810.0,0.2194436]
[1750339673194,1.62313628,104820.0,104810.0,0.3753236]
[1750339674081,1.432333,104820.0,104810.0,0.3753236]
[1750339674314,1.40371315,104820.0,104810.0,0.3753236]
[1750339674541,0.36955323,104820.0,104810.0,0.4158036]
[1750339674776,0.36955323,104820.0,104810.0,0.55048253]
[1750339674777,0.02955323,104820.0,104810.0,0.55048253]
[1750339675232,0.8322102,104830.0,104820.0,0.21942267]
[1750339675457,0.8312902,104830.0,104820.0,0.3539016]
[1750339675683,0.4921602,104830.0,104820.0,0.3539016]
[1750339676416,5e-05,104840.0,104830.0,0.25930174]
[1750339676649,0.028753,104850.0,104840.0,0.25878081]
[1750339676650,9e-05,104850.0,104840.0,0.25878081]
[1750339676881,9e-05,104850.0,104840.0,1.41430194]
[1750339677093,9e-05,104850.0,104840.0,0.99385727]
[1750339677319,9e-05,104850.0,104840.0,0.95341727]
[1750339677553,9e-05,104850.0,104840.0,1.07818174]
[1750339677767,9e-05,104850.0,104840.0,1.04269994]
[1750339678464,9e-05,104850.0,104840.0,1.63169911]
[1750339678725,9e-05,104850.0,104840.0,1.68669911]
[1750339678940,9e-05,104850.0,104840.0,1.05444391]
[1750339679173,9e-05,104850.0,104840.0,1.25092391]
[1750339679626,9e-05,104850.0,104840.0,1.59092391]
[1750339680084,9e-05,104850.0,104840.0,1.53374923]
[1750339680970,9e-05,104850.0,104840.0,1.53074923]
[1750339681188,9e-05,104850.0,104840.0,1.52574923]
[1750339683163,9e-05,104850.0,104840.0,1.87404833]
[1750339684960,9e-05,104850.0,104840.0,1.81724923]
[1750339685179,0.54022433,104890.0,104880.0,0.20976325]
[1750339685397,0.54022433,104890.0,104880.0,0.5110567]
[1750339685398,0.7106497,104890.0,104880.0,0.5110567]
[1750339686050,0.7296497,104890.0,104880.0,0.52059095]
[1750339686322,0.23827918,104890.0,104870.0,0.20023122]
[1750339686547,0.51043856,104880.0,104870.0,0.3241158]
[1750339686767,0.51043856,104880.0,104870.0,0.5205158]
[1750339687418,0.5199729,104880.0,104870.0,0.5205158]
[1750339687636,0.52950742,104880.0,104870.0,0.5205158]
[1750339687853,0.5199729,104880.0,104870.0,0.5205158]
[1750339688284,0.51043856,104880.0,104870.0,0.5559976]
[1750339688512,0.51043856,104880.0,104870.0,0.5205158]
[1750339688941,0.51043856,104880.0,104870.0,0.5235158]
[1750339689805,0.01906804,104880.0,104870.0,0.5235158]
[1750339690022,0.51043856,104880.0,104870.0,0.5235158]
[1750339690305,0.51043856,104880.0,104870.0,0.5255158]
[1750339690521,0.5009044,104880.0,104870.0,0.5255158]
[1750339690704,0.51997262,104880.0,104870.0,0.5255158]
[1750339692238,0.52950696,104880.0,104870.0,0.5255158]
[1750339693570,0.52495683,104880.0,104870.0,0.5255158]
[1750339693770,0.53449117,104880.0,104870.0,0.5255158]
[1750339694011,0.52495683,104880.0,104870.0,0.5255158]
[1750339694221,0.51542267,104880.0,104870.0,0.5255158]
[1750339696031,0.52495701,104880.0,104870.0,0.5255158]
[1750339696349,0.52495692,104880.0,104870.0,0.5255158]
[1750339696596,0.01906794,104880.0,104870.0,0.5255158]
[1750339696798,0.51997271,104880.0,104870.0,0.5255158]
[1750339697010,0.51043846,104880.0,104870.0,0.5255158]
[1750339697204,0.51997262,104880.0,104870.0,0.5255158]
[1750339697652,0.51043846,104880.0,104870.0,0.5255158]
[1750339698309,0.01906794,104880.0,104870.0,0.5255158]
[1750339698536,0.51043846,104880.0,104870.0,0.5255158]
[1750339699220,0.51997271,104880.0,104870.0,0.5255158]
[1750339699431,0.51043846,104880.0,104870.0,0.5255158]
[1750339701171,0.5009044,104880.0,104870.0,0.5255158]
[1750339701662,0.51043846,104880.0,104870.0,0.5255158]
[1750339702150,0.51043846,104880.0,104870.0,0.5255958]
[1750339703075,0.51997262,104880.0,104870.0,0.5255958]
[1750339703950,0.5009044,104880.0,104870.0,0.5255958]
[1750339704165,0.51043846,104880.0,104870.0,0.5255958]
[1750339704803,0.5009044,104880.0,104870.0,0.5255958]
[1750339705529,0.51043846,104880.0,104870.0,0.5255958]
[1750339706367,0.29854043,104880.0,104870.0,0.5255958]
[1750339707457,0.28900655,104880.0,104870.0,0.5255958]
[1750339710714,0.51997045,104890.0,104880.0,0.21929713]
[1750339710928,0.57050415,104890.0,104880.0,0.21929713]
[1750339711135,0.57050406,104890.0,104880.0,0.21929713]
[1750339712200,0.57944588,104890.0,104880.0,0.21929713]
[1750339712834,0.57944588,104890.0,104880.0,0.22029713]
[1750339713252,0.56991227,104890.0,104880.0,0.22029713]
[1750339713459,0.57050406,104890.0,104880.0,0.22029713]
[1750339713672,0.57944665,104890.0,104880.0,0.22029713]
[1750339714732,0.57944674,104890.0,104880.0,0.22029713]
[1750339715758,0.57944674,104890.0,104880.0,0.26077713]
[1750339717055,0.57945636,104890.0,104880.0,0.26077713]
[1750339717695,0.57051368,104890.0,104880.0,0.26077713]
[1750339718322,0.57055368,104890.0,104880.0,0.26077713]
[1750339720539,0.76122962,104890.0,104880.0,0.22029713]
[1750339720783,0.77076332,104890.0,104880.0,0.22029713]
[1750339721370,0.0095337,104890.0,104880.0,0.22029713]
[1750339721549,0.50091384,104890.0,104880.0,0.22029713]
[1750339721751,0.69158978,104890.0,104880.0,0.22029713]
[1750339721954,0.50091384,104890.0,104880.0,0.22029713]
[1750339722208,0.69158978,104890.0,104880.0,0.22029713]
[1750339722423,0.71065673,104890.0,104880.0,0.37605713]
[1750339723556,1.06019025,104890.0,104880.0,0.001]
[1750339723758,1.06019025,104890.0,104880.0,0.35698873]
[1750339723759,1.53250353,104890.0,104880.0,0.35698873]
[1750339723970,1.53250353,104890.0,104880.0,0.36652325]
[1750339725011,1.57300353,104890.0,104880.0,0.36652325]
[1750339725222,1.57300353,104890.0,104880.0,0.001]
[1750339725434,1.56346992,104890.0,104880.0,0.15676]
[1750339725889,1.57241395,104890.0,104880.0,0.15676]
[1750339727560,1.57241395,104890.0,104880.0,0.35698882]
[1750339727764,1.53191395,104890.0,104880.0,0.35698882]
[1750339730695,1.52296992,104890.0,104880.0,0.35698882]
[1750339731159,1.52296992,104890.0,104880.0,0.1662947]
[1750339731378,1.52296992,104890.0,104880.0,0.15676]
[1750339733033,1.52296992,104890.0,104880.0,0.001]
[1750339733253,1.56556992,104890.0,104880.0,0.001]
[1750339734988,1.56556992,104890.0,104880.0,0.20122882]
[1750339735202,1.56556992,104890.0,104880.0,0.21076343]
[1750339735851,1.52296992,104890.0,104880.0,0.21076343]
[1750339736787,1.52296965,104890.0,104880.0,0.22029795]
[1750339737021,1.05065682,104890.0,104880.0,0.2298322]
[1750339737252,1.06018998,104890.0,104880.0,0.28156636]
[1750339738889,1.06018998,104890.0,104880.0,0.2720322]
[1750339739790,1.05065682,104890.0,104880.0,0.2720322]
[1750339742253,1.05065682,104890.0,104880.0,0.26249795]
[1750339742501,1.53250353,104890.0,104880.0,0.001]
[1750339742722,1.55843622,104890.0,104880.0,0.001]
[1750339742939,1.53613622,104890.0,104880.0,0.19169412]
[1750339743165,1.51343622,104890.0,104880.0,0.001]
[1750339751965,1.51343622,104890.0,104880.0,0.19169412]
[1750339752462,1.51343622,104890.0,104880.0,0.25366325]
[1750339752900,1.02205608,104890.0,104880.0,0.26319768]
[1750339753648,1.04112294,104890.0,104880.0,0.26319768]
[1750339753859,1.04112294,104890.0,104880.0,0.27273202]
[1750339754139,0.34953316,104890.0,104880.0,0.27273202]
[1750339754354,0.85044691,104890.0,104880.0,0.28226608]
[1750339754776,0.51044691,104890.0,104880.0,0.28226608]
[1750339755634,0.72018998,104890.0,104880.0,0.28226608]
[1750339756770,0.72972377,104890.0,104880.0,0.28226608]
[1750339757012,0.72972377,104890.0,104880.0,0.28226627]
[1750339757236,0.72019061,104890.0,104880.0,0.28226627]
[1750339757664,1.21157075,104890.0,104880.0,0.28226627]
[1750339757876,1.21157075,104890.0,104880.0,0.25366325]
[1750339758104,1.20203732,104890.0,104880.0,0.40938325]
[1750339758315,1.20203732,104890.0,104880.0,0.41891768]
[1750339758912,1.20203732,104890.0,104880.0,0.41891768]
[1750339760013,1.19250371,104890.0,104880.0,0.41891768]
[1750339760689,1.53250371,104890.0,104880.0,0.41891768]
[1750339762455,1.53250371,104890.0,104880.0,0.42845202]
[1750339770583,1.53250371,104890.0,104880.0,0.43798627]
[1750339772016,1.04112357,104890.0,104880.0,0.43798627]
[1750339772559,1.04112357,104890.0,104880.0,0.43798582]
[1750339772759,1.04112357,104890.0,104880.0,0.43798536]
[1750339772960,0.85044727,104890.0,104880.0,0.43798536]
[1750339773178,0.85998034,104890.0,104880.0,0.43798536]
[1750339773851,0.85044673,104890.0,104880.0,0.43798536]
[1750339774065,0.3590665,104890.0,104880.0,0.43798536]
[1750339774279,0.85044664,104890.0,104880.0,0.43798536]
[1750339774940,0.85998016,104890.0,104880.0,0.43798536]
[1750339775167,0.85044664,104890.0,104880.0,0.43798536]
[1750339775380,0.86951377,104890.0,104880.0,0.43798536]
[1750339778430,0.85998016,104890.0,104880.0,0.43798536]
[1750339779281,0.85997988,104890.0,104880.0,0.43798536]
[1750339779492,0.85997979,104890.0,104880.0,0.43798536]
[1750339780704,0.86951331,104890.0,104880.0,0.43798536]
[1750339783448,0.85997979,104890.0,104880.0,0.43798536]
[1750339783798,0.85044636,104890.0,104880.0,0.43798536]
[1750339784006,0.8599797,104890.0,104880.0,0.43798536]
[1750339784531,0.34,104890.0,104880.0,0.43798536]
[1750339784764,0.83138014,104890.0,104880.0,0.53326429]
[1750339785715,0.52122824,104900.0,104890.0,0.26057623]
[1750339785716,0.02031603,104900.0,104890.0,0.26057623]
[1750339785950,0.85169617,104900.0,104890.0,0.35585516]
[1750339786597,0.86122824,104900.0,104890.0,0.35585516]
[1750339787026,0.36031603,104900.0,104890.0,0.35585516]
[1750339787241,0.85169617,104900.0,104890.0,0.35585516]
[1750339787457,0.86122824,104900.0,104890.0,0.35585516]
[1750339787869,0.51169617,104900.0,104890.0,0.4321001]
[1750339788295,0.02031603,104900.0,104890.0,0.4724201]
[1750339788731,0.51169617,104900.0,104890.0,0.4724201]
[1750339789151,0.51169617,104900.0,104890.0,0.5079019]
[1750339789353,0.51169617,104900.0,104890.0,0.4724201]
[1750339790186,0.51169617,104900.0,104890.0,0.35585516]
[1750339790426,1.02214072,104900.0,104890.0,0.51149516]
[1750339791490,1.02214063,104900.0,104890.0,0.51149516]
[1750339791694,1.01260838,104900.0,104890.0,0.54697696]
[1750339791904,1.01260838,104900.0,104890.0,0.51149516]
[1750339792588,1.02214063,104900.0,104890.0,0.51149516]
[1750339793879,1.03167306,104900.0,104890.0,0.51149516]
[1750339794111,1.02214063,104900.0,104890.0,0.51149516]
[1750339794957,1.02214072,104900.0,104890.0,0.51149516]
[1750339795208,1.02214063,104900.0,104890.0,0.51149516]
[1750339795684,1.03167315,104900.0,104890.0,0.51149516]
[1750339795927,1.02214063,104900.0,104890.0,0.51149516]
[1750339796160,1.03167306,104900.0,104890.0,0.51149516]
[1750339796731,1.04120558,104900.0,104890.0,0.51149516]
[1750339797009,1.05073828,104900.0,104890.0,0.51149516]
[1750339797214,1.05073828,104900.0,104890.0,0.51145516]
[1750339797637,1.24139676,104900.0,104890.0,0.51145516]
[1750339797847,1.24139676,104900.0,104890.0,0.26057623]
[1750339798055,1.04120621,104900.0,104890.0,0.45649623]
[1750339798519,1.04120612,104900.0,104890.0,0.49197803]
[1750339798796,1.04120612,104900.0,104890.0,0.45649623]
[1750339799259,1.05073882,104900.0,104890.0,0.45649623]
[1750339799707,1.04120612,104900.0,104890.0,0.45649623]
[1750339800147,1.05073882,104900.0,104890.0,0.45649623]
[1750339800376,1.24139658,104900.0,104890.0,0.45649623]
[1750339800624,1.24139712,104900.0,104890.0,0.45649623]
[1750339800816,1.24139712,104900.0,104890.0,0.44696307]
[1750339801040,1.24139712,104900.0,104890.0,0.46602948]
[1750339801275,1.24139757,104900.0,104890.0,0.46602948]
[1750339801733,1.24638106,104900.0,104890.0,0.29136307]
[1750339801979,1.22731593,104900.0,104890.0,0.44696325]
[1750339802203,1.20825044,104900.0,104890.0,0.23197594]
[1750339802435,1.23554491,104900.0,104890.0,0.38584343]
[1750339802911,1.22601203,104900.0,104890.0,0.35580973]
[1750339803153,0.23834336,104890.0,104880.0,0.29264325]
[1750339803390,0.23834336,104890.0,104880.0,0.56259058]
[1750339803391,0.52951431,104890.0,104880.0,0.56259058]
[1750339803621,0.72019025,104890.0,104880.0,0.26189759]
[1750339803875,0.72019025,104890.0,104880.0,0.46731184]
[1750339804111,0.70112339,104890.0,104880.0,0.40796343]
[1750339804346,0.70112339,104890.0,104880.0,0.41749795]
[1750339804798,0.70112339,104890.0,104880.0,0.43756654]
[1750339806352,0.70112339,104890.0,104880.0,0.23429412]
[1750339806569,1.18296992,104890.0,104880.0,0.15656]
[1750339807446,1.18296992,104890.0,104880.0,0.001]
[1750339807712,1.18296992,104890.0,104880.0,0.15656]
[1750339807926,1.61677025,104890.0,104880.0,0.001]
[1750339808139,1.61677025,104890.0,104880.0,0.15656]
[1750339808598,1.61677025,104890.0,104880.0,0.001]
[1750339808813,0.20022864,104880.0,104870.0,0.07624494]
[1750339809081,1.19252335,104880.0,104870.0,0.24134055]
[1750339809294,1.19252335,104880.0,104870.0,0.43205277]
[1750339809511,1.19252335,104880.0,104870.0,0.44158802]
[1750339809722,1.19252335,104880.0,104870.0,0.49572308]
[1750339810353,1.19252335,104880.0,104870.0,0.48618802]
[1750339810781,0.00953479,104870.0,104860.0,0.25396801]
[1750339810993,0.51045027,104870.0,104860.0,0.42860023]
[1750339811216,0.51044999,104870.0,104860.0,0.42860023]
[1750339811459,0.51998542,104870.0,104860.0,0.42860023]
[1750339812523,0.02860601,104870.0,104860.0,0.42860023]
[1750339812738,0.72023371,104870.0,104860.0,0.42006435]
[1750339812949,0.72976932,104870.0,104860.0,0.42006435]
[1750339813153,0.72023426,104870.0,104860.0,0.42006435]
[1750339813580,0.72023426,104870.0,104860.0,0.42960023]
[1750339813581,0.02860565,104870.0,104860.0,0.42960023]
[1750339813792,0.51998579,104870.0,104860.0,0.42960023]
[1750339815571,1.05069874,104870.0,104860.0,0.21409597]
[1750339815790,1.05069874,104870.0,104860.0,0.37590526]
[1750339816007,1.53254363,104870.0,104860.0,0.001]
[1750339816242,1.53254363,104870.0,104860.0,0.15656]
[1750339816448,1.53254363,104870.0,104860.0,0.35682701]
[1750339816869,1.5230082,104870.0,104860.0,0.35682701]
[1750339817116,1.5230082,104870.0,104860.0,0.35582701]
[1750339818252,0.19073049,104860.0,104850.0,0.24433801]
[1750339818466,0.19073049,104860.0,104850.0,0.39044868]
[1750339818467,1.17349077,104860.0,104850.0,0.39044868]
[1750339818679,1.17349077,104860.0,104850.0,0.39998602]
[1750339819137,1.18302729,104860.0,104850.0,0.40952318]
[1750339819349,0.00953588,104860.0,104850.0,0.42859667]
[1750339819561,1.03044033,104860.0,104850.0,0.42859667]
[1750339820428,1.03044033,104860.0,104850.0,0.42959667]
[1750339821062,0.53931755,104860.0,104850.0,0.42959667]
[1750339821291,0.72051298,104860.0,104850.0,0.41052318]
[1750339821499,1.06051298,104860.0,104850.0,0.42006015]
[1750339821934,1.06051298,104860.0,104850.0,0.26446015]
[1750339822148,1.05097701,104860.0,104850.0,0.44600498]
[1750339822364,1.05097701,104860.0,104850.0,0.41052327]
[1750339822575,1.05097701,104860.0,104850.0,0.42006024]
[1750339822783,1.05097701,104860.0,104850.0,0.42959712]
[1750339823207,1.05097701,104860.0,104850.0,0.41052327]
[1750339823411,1.05097701,104860.0,104850.0,0.42006034]
[1750339824100,1.05097701,104860.0,104850.0,0.41052327]
[1750339824348,1.04144085,104860.0,104850.0,0.35688602]
[1750339824558,1.02236799,104860.0,104850.0,0.35688602]
[1750339824769,1.02236799,104860.0,104850.0,0.36642327]
[1750339824770,0.54026683,104860.0,104850.0,0.36642327]
[1750339824976,0.54026683,104860.0,104850.0,0.41906043]
[1750339824977,1.03190433,104860.0,104850.0,0.41906043]
[1750339825193,1.03190433,104860.0,104850.0,0.43813447]
[1750339825827,0.85070991,104860.0,104850.0,0.43813401]
[1750339826034,0.86024634,104860.0,104850.0,0.43813355]
[1750339826242,0.85070991,104860.0,104850.0,0.43813355]
[1750339826674,1.0414404,104860.0,104850.0,0.43813355]
[1750339826884,0.86024634,104860.0,104850.0,0.43813355]
[1750339827094,0.85070991,104860.0,104850.0,0.47361535]
[1750339827304,0.85070991,104860.0,104850.0,0.43813355]
[1750339827947,1.0414404,104860.0,104850.0,0.43813355]
[1750339828165,1.05097692,104860.0,104850.0,0.40952327]
[1750339828849,1.05097692,104860.0,104850.0,0.38762327]
[1750339829624,1.05097692,104860.0,104850.0,0.39716034]
[1750339829852,1.04144085,104860.0,104850.0,0.39716034]
[1750339830102,1.04144085,104860.0,104850.0,0.42799731]
[1750339830361,1.04144085,104860.0,104850.0,0.41846034]
[1750339830587,1.04144085,104860.0,104850.0,0.42799722]
[1750339830800,1.04144085,104860.0,104850.0,0.41846034]
[1750339831463,1.04144085,104860.0,104850.0,0.42799722]
[1750339832613,1.04144085,104860.0,104850.0,0.41846034]
[1750339833084,1.04144085,104860.0,104850.0,0.42799731]
[1750339833958,1.04144085,104860.0,104850.0,0.41846033]
[1750339834839,0.85071036,104860.0,104850.0,0.437534]
[1750339835050,0.85070991,104860.0,104850.0,0.437534]
[1750339835277,0.84117329,104860.0,104850.0,0.437534]
[1750339835506,0.85070936,104860.0,104850.0,0.437534]
[1750339835950,0.85070926,104860.0,104850.0,0.437534]
[1750339836599,0.86024551,104860.0,104850.0,0.437534]
[1750339836890,0.86024551,104860.0,104850.0,0.4730158]
[1750339836891,0.85070926,104860.0,104850.0,0.4730158]
[1750339837169,0.85070926,104860.0,104850.0,0.437534]
[1750339837408,0.8316375,104860.0,104850.0,0.53281293]
[1750339837624,0.34,104860.0,104850.0,0.53281293]
[1750339838969,0.34,104860.0,104850.0,1.10069537]
[1750339839460,5.14031988,104880.0,104870.0,0.26241805]
[1750339839691,4.98868238,104880.0,104870.0,0.41839362]
[1750339839915,1.07000313,104880.0,104870.0,0.41839381]
[1750339840141,0.87930883,104880.0,104870.0,0.43746384]
[1750339841368,1.07000368,104880.0,104870.0,0.43746384]
[1750339841583,0.86977495,104880.0,104870.0,0.43746384]
[1750339841788,0.86024043,104880.0,104870.0,0.43746384]
[1750339842222,0.86977495,104880.0,104870.0,0.43746384]
[1750339842657,0.3590685,104880.0,104870.0,0.43746384]
[1750339842869,0.86023988,104880.0,104870.0,0.43746384]
[1750339844555,0.86023979,104880.0,104870.0,0.43746384]
[1750339844815,0.86977422,104880.0,104870.0,0.43746384]
[1750339845947,0.86023979,104880.0,104870.0,0.43746384]
[1750339846181,0.86977413,104880.0,104870.0,0.43746384]